Cogmind - Beta 12 @@@ ROGUE MODE // 2023.03.28 @ 13:48:10 Player: dhtilly Result: Destroyed by G-50 Soldier with Heavy Laser Performance ------------- Evolutions (2) 1000 Regions Visited (9) 1800 Robots Destroyed (198) 990 Value Destroyed (6704) 6704 Prototype IDs (10) 200 Alien Tech Used (0) 0 Bonus (1277) 1277 TOTAL SCORE: 11971 Bonus ------- High Alert Combat Kills 1174 Follower Combat Kills 239 Entered Garrisons 200 Friendly Fire -336 Cogmind --------- Core Integrity 0/550 Matter 169/300 Energy 8/100 System Corruption 7% Temperature Cool (27) Movement Rolling (150) Ox4 Location -8/Materials Parts ------- > --- POWER (1) -------- (None) > --- PROPULSION (4) --- Medium Treads Medium Treads Medium Treads Armored Wheel > --- UTILITY (4) ------ Cooling System (fused) High-capacity Storage Unit Seismic Detector Advanced Targeting Computer > --- WEAPON (2) ------- Heavy Particle Cannon > --- INVENTORY (20) --- Improved Deuterium Engine Fission Core Medium Treads Armored Wheel Improved Heat Sink Huge Storage Unit Compact Battery (200) Experimental Sensor Array Kinecellerator Light Armor Plating Hardened Heavy Armor Plating Reactive Plating Thief Drone Bay (3/3) Particle Cannon Shotgun Improved Grenade Launcher Improved Datajack Katana Gamma Bomb Trap Peak State ------------ > --- POWER ------------ Reinforced Deuterium Engine > --- PROPULSION ------- Medium Treads Medium Treads Medium Treads Armored Wheel > --- UTILITY ---------- Cooling System High-capacity Storage Unit Improved Signal Interpreter Advanced Targeting Computer > --- WEAPON ----------- Advanced Beam Cannon Katana > --- INVENTORY -------- Reinforced Ion Engine Fission Core Light Treads Medium Treads Armored Wheel Armored Wheel Improved Heat Sink Huge Storage Unit Compact Battery Experimental Sensor Array Seismic Detector Light Armor Plating Hardened Heavy Armor Plating Reactive Plating Thief Drone Bay Advanced Beam Cannon Improved Grenade Launcher Improved Datajack Gamma Bomb Trap [Rating: 39] Favorites ----------- Power Cooled Ion Engine Engine Cooled Ion Engine Power Core Light Nuclear Core Propulsion Light Treads Treads Light Treads Leg Titanium Leg Wheel Armored Wheel Utility Large Storage Unit Device Improved Heat Sink Storage Large Storage Unit Processor Advanced Targeting Computer Hackware Hacking Suite Protection Light Armor Plating Weapon Advanced Beam Cannon Energy Gun Improved Medium Laser Energy Cannon Advanced Beam Cannon Ballistic Gun Assault Rifle Launcher Rocket Launcher Slashing Weapon Katana Special Melee Weapon Improved Datajack Build | -11 -10 -10 -9 -9 -9 -8 -8 -8 -8 ------- Run | Jun Mat Min Mat Min Exi Min Mat Gar Mat Slots Evolved 4 | . . . 2 . . . 2 . . Power . | . . . . . . . . . . Propulsion 2 | . . . 1 . . . 1 . . Utility 2 | . . . 1 . . . 1 . . Weapon . | . . . . . . . . . . Parts Attached 217 | 6 9 5 40 10 1 2 82 44 18 Power 11 | 1 . . 2 . . . 4 2 2 Engine 9 | 1 . . 2 . . . 2 2 2 Core 2 | . . . . . . . 2 . . Reactor . | . . . . . . . . . . Propulsion 71 | 2 2 . 18 . . 1 29 12 7 Treads 28 | 2 2 . 8 . . . 5 7 4 Leg 36 | . . . 10 . . 1 22 3 . Wheel 7 | . . . . . . . 2 2 3 Hover . | . . . . . . . . . . Flight . | . . . . . . . . . . Utility 73 | 1 5 3 6 2 1 1 40 12 2 Device 36 | . 1 3 2 2 1 1 21 4 1 Storage 8 | 1 2 . . . . . 5 . . Processor 3 | . 1 . . . . . 1 1 . Hackware 2 | . . . . . . . 2 . . Protection 24 | . 1 . 4 . . . 11 7 1 Artifact . | . . . . . . . . . . Weapon 62 | 2 2 2 14 8 . . 9 18 7 Energy Gun 1 | . . . 1 . . . . . . Energy Cannon 32 | . . . 9 4 . . 8 8 3 Ballistic Gun 9 | 2 2 1 2 . . . 1 . 1 Ballistic Cannon . | . . . . . . . . . . Launcher 10 | . . 1 2 4 . . . 1 2 Special Weapon . | . . . . . . . . . . Impact Weapon . | . . . . . . . . . . Slashing Weapon 6 | . . . . . . . . 6 . Piercing Weapon . | . . . . . . . . . . Special Melee Weapon 4 | . . . . . . . . 3 1 Unidentified Prototypes 6 | . . 2 4 . . . . . . Parts Lost 39 | . . . 6 4 . 1 16 10 2 Power 4 | . . . 1 . . . 2 1 . Propulsion 14 | . . . 3 . . 1 5 5 . Utility 9 | . . . 1 1 . . 5 2 . Weapon 12 | . . . 1 3 . . 4 2 2 Highest Loss Streak 5 | . . . 3 3 . 1 5 4 2 To Critical Strikes . | . . . . . . . . . . Average Slot Usage (%) 98 | . 97 100 98 97 100 100 98 98 97 Engine 9 | . 14 14 10 11 11 11 5 8 7 Core 1 | . . . . . . . 3 . . Treads 12 | . 28 28 9 . . . 5 18 26 Leg 16 | . . . 23 33 33 33 28 2 . Wheel 3 | . . . . . . . 1 14 8 Device 14 | . 7 14 11 19 22 22 17 12 13 Storage 10 | . 14 14 11 11 11 11 9 9 9 Processor 3 | . 2 . . . . . 2 9 12 Protection 4 | . 2 . 10 2 . . 6 5 1 Energy Cannon 14 | . . . 19 17 22 22 17 15 14 Ballistic Gun 5 | . 27 27 1 . . . . . . Naked Turns . | . . . . . . . . . . Heaviest Build 75 | 13 30 31 43 44 38 38 59 75 68 Greatest Support 84 | 40 40 40 60 51 51 51 61 60 84 Greatest Overweight (x) 5 | . . . 2 . . . 4 5 5 Average Overweight (x) . | . . . . . . . . 2 4 Largest Inventory Capacity 25 | 8 15 15 15 15 15 15 25 20 20 Average Capacity 15 | 7 11 15 15 15 15 15 15 20 20 Most Carried 20 | 4 14 15 15 15 15 15 20 20 20 Average Carried 15 | 2 8 14 14 14 14 14 15 19 18 Final Capacity 20 | 8 15 15 15 15 15 15 20 20 20 Final Carried 20 | 4 14 15 15 15 15 15 20 20 20 Class Distribution -------------------- 58% | Mutant 39% | Scavenger-Mutant Dominant Class ---------------- Mutant | -10/Materials Mutant | -10/Mines Scavenger-Mutant | -9/Materials Mutant | -9/Mines Mutant | -9/Exiles Mutant | -8/Mines Mutant | -8/Materials Scavenger-Mutant | -8/Garrison Mutant | -8/Materials Resources | -11 -10 -10 -9 -9 -9 -8 -8 -8 -8 ----------- Run | Jun Mat Min Mat Min Exi Min Mat Gar Mat Matter Collected 3256 | 207 313 108 726 222 10 20 886 543 221 Remotely . | . . . . . . . . . . Salvage Created 7600 | . 479 65 1861 380 . 286 2568 1461 500 Parts 424 | . 29 8 129 30 . 18 122 66 22 Haulers Intercepted 11 | . 2 . 5 . . . 4 . . Recyclers Shooed 1 | . . . . . . . . . 1 Parts Field Recycled . | . . . . . . . . . . Retrieved Matter . | . . . . . . . . . . Parts Self-Destructed . | . . . . . . . . . . Prevented . | . . . . . . . . . . Kills | -11 -10 -10 -9 -9 -9 -8 -8 -8 -8 ------- Run | Jun Mat Min Mat Min Exi Min Mat Gar Mat Combat Hostiles Destroyed 165 | . 10 6 39 15 . 11 40 30 14 Guns 21 | . 10 3 6 . . . 1 . 1 Cannons 107 | . . . 25 4 . 11 37 25 5 AOE 33 | . . 3 7 11 . . . 4 8 Classes Destroyed 17 | . 4 . 5 4 . . 2 1 1 Worker 10 | . . . 3 3 . . 4 . . Builder 6 | . . . 3 1 . . 1 . 1 Tunneler 2 | . . . . 2 . . . . . Hauler 11 | . 2 . 5 . . . 4 . . Recycler 5 | . . . . 3 . . 2 . . Operator 4 | . . . 3 . . . 1 . . Watcher 9 | . 2 . 5 . . . 2 . . Swarmer 37 | . 3 6 10 . . 8 3 7 . Grunt 80 | . 7 . 19 1 . 3 24 18 8 Brawler 3 | . . . . . . . . 2 1 Duelist 8 | . . . 1 1 . . 1 1 4 Protector 1 | . . . . . . . . . 1 Sentry 21 | . . . 9 . . . 10 2 . Demolisher 1 | . . . . 1 . . . . . Hunter 1 | . . . . . . . 1 . . Heavy 1 | . . . . . . . 1 . . Assembled 13 | . . . . 13 . . . . . Best Kill Streak 13 | . 6 3 6 9 . 4 5 5 13 Combat Bots Only 12 | . 6 3 6 6 . 4 4 5 12 Max Kills in Single Turn 5 | . 1 1 3 5 . 1 1 2 5 Gunslinging . | . . . . . . . . . . Exploded 4 | . . 1 2 4 . . . 2 4 Melee . | . . . . . . . . . . Uniques/NPCs Destroyed . | . . . . . . . . . . Combat | -11 -10 -10 -9 -9 -9 -8 -8 -8 -8 -------- Run | Jun Mat Min Mat Min Exi Min Mat Gar Mat Damage Taken 8481 | . 305 94 1557 734 . 229 2596 2339 627 Core 1016 | . 45 18 242 113 . 33 149 324 92 Absorbed by Shields . | . . . . . . . . . . Redirected to Shielding 117 | . . . . . . . . 117 . Regen/Repaired (Parts) 577 | . 104 . 112 . . . 189 . 172 Core Remaining (%) 59 | 100 . 74 . . . 3 . . . Volleys Fired 539 | . 52 14 122 21 . 22 174 99 35 Largest 2 | . 2 2 2 2 . 2 2 2 2 Hottest 160 | . 40 40 128 136 . 136 160 148 136 Shots Fired 974 | . 104 25 231 28 . 44 303 182 57 Gun 208 | . 104 22 64 . . . 15 . 3 Cannon 733 | . . . 161 16 . 44 288 178 46 Launcher 33 | . . 3 6 12 . . . 4 8 Special . | . . . . . . . . . . Kinetic 208 | . 104 22 64 . . . 15 . 3 Thermal 733 | . . . 161 16 . 44 288 178 46 Explosive 33 | . . 3 6 12 . . . 4 8 Electromagnetic . | . . . . . . . . . . Robot Hit Streak 44 | . 12 6 14 4 . 4 44 10 28 Robot Miss Streak 6 | . 3 5 6 1 . 4 5 4 3 Penetration Max . | . . . . . . . . . . Secondary Targets 6 | . 1 2 3 . . . . . . Max Gunslinging Chain 1 | . 1 1 1 . . . . . . Shots Hit Robots 639 | . 70 11 152 14 . 19 192 144 37 Core Hits 325 | . 29 6 64 40 . 15 81 54 36 Critical Kills 4 | . 1 . 1 . . . 2 . . Critical Parts Destroyed . | . . . . . . . . . . Critical Strikes 4 | . 1 . 1 . . . 2 . . Meltdown 3 | . . . 1 . . . 2 . . Destroy 1 | . 1 . . . . . . . . Melee Attacks 54 | . . . . . . . . 54 . Impact . | . . . . . . . . . . Slashing 41 | . . . . . . . . 41 . Piercing . | . . . . . . . . . . Sneak Attacks 12 | . . . . . . . . 12 . Combat Hostiles . | . . . . . . . . . . Follow-up Attacks . | . . . . . . . . . . Damage Inflicted 16107 | . 784 281 3162 1431 . 449 4709 3623 1668 Guns 1809 | . 784 133 666 . . . 171 . 55 Cannons 10422 | . . . 2035 204 . 449 4538 2605 591 Explosions 3186 | . . 148 461 1227 . . . 329 1021 Melee 689 | . . . . . . . . 689 . Ramming 1 | . . . . . . . . . 1 Kinetic 1809 | . 784 133 666 . . . 171 . 55 Thermal 10422 | . . . 2035 204 . 449 4538 2605 591 Explosive 3186 | . . 148 461 1227 . . . 329 1021 Electromagnetic . | . . . . . . . . . . Impact . | . . . . . . . . . . Slashing 689 | . . . . . . . . 689 . Piercing . | . . . . . . . . . . Highest Corruption 7 | . . . . . . . 5 7 7 Average Corruption 5 | . . . . . . . 4 6 7 Corruption Purged . | . . . . . . . . . . Corruption Blocked . | . . . . . . . . . . Effects 147 | . . . . . . . 54 73 20 Message Errors 33 | . . . . . . . 14 14 5 Matter Fused 32 | . . . . . . . 10 17 5 Heat Flow Errors 19 | . . . . . . . 3 12 4 Energy Discharges 15 | . . . . . . . 5 8 2 Parts Rejected 2 | . . . . . . . 1 1 . Parts Fused 3 | . . . . . . . . 3 . Data Loss (minor) 18 | . . . . . . . 9 9 . Data Loss (major) 8 | . . . . . . . 5 1 2 Misfires 7 | . . . . . . . 3 3 1 Alerts 5 | . . . . . . . 2 2 1 Weapon Failures 5 | . . . . . . . 2 3 . Overload Shots . | . . . . . . . . . . Overflow Damage 251 | . . 6 30 14 . . 84 61 56 Projectiles 153 | . . . 21 . . . 84 45 3 Explosions 82 | . . 6 9 14 . . . . 53 Melee 16 | . . . . . . . . 16 . Knockbacks . | . . . . . . . . . . Impact . | . . . . . . . . . . Kinetic . | . . . . . . . . . . Secondary . | . . . . . . . . . . Self-Inflicted Damage 283 | . . 3 86 162 . . . 32 . Shots 10 | . . 1 2 5 . . . 2 . Rammed 2 | . . . . . . . . . 2 Targets Rammed 2 | . . . . . . . . . 2 Kicked . | . . . . . . . . . . Crushed . | . . . . . . . . . . Highest Temperature 458 | . 12 . 108 18 . 279 458 449 212 Average Temperature 74 | . 7 . 25 10 . 90 97 91 37 Received Heat Transfer 3418 | . 147 . 495 40 . 117 1314 1098 207 Effects 5 | . . . . . . . 5 . . Shutdowns 1 | . . . . . . . 1 . . Interference 3 | . . . . . . . 3 . . Damage (minor) 1 | . . . . . . . 1 . . Siege Activations . | . . . . . . . . . . Robots Corrupted . | . . . . . . . . . . Combat Hostiles . | . . . . . . . . . . Parts Fried 1 | . . . . . . . . 1 . Impact Corruptions . | . . . . . . . . . . Robots Melted 5 | . . . 2 . . . 2 1 . Combat Hostiles 4 | . . . 1 . . . 2 1 . Parts Melted 37 | . . . 9 1 . 1 17 9 . Heat Transferred 19571 | . . . 3885 370 . 814 8756 4673 1073 Parts Sabotaged . | . . . . . . . . . . Parts Stolen . | . . . . . . . . . . Parts Stripped . | . . . . . . . . . . Power Chain Reactions . | . . . . . . . . . . Missiles Intercepted . | . . . . . . . . . . Alert | -11 -10 -10 -9 -9 -9 -8 -8 -8 -8 ------- Run | Jun Mat Min Mat Min Exi Min Mat Gar Mat Peak Influence 1823 | . 306 101 612 381 . 125 560 1823 1400 Initial 888 | . . . . 238 . . 42 341 888 Average 415 | . 91 12 250 227 . 64 347 1046 1126 Maximum Alert Level 5 | . 1 . 2 1 . . 2 5 4 Low Security (%) 45 | 100 85 100 59 51 . 100 22 . . Level 1 15 | . 14 . 9 48 . . 36 2 . Level 2 19 | . . . 30 . . . 41 19 . Level 3 8 | . . . . . . . . 31 44 Level 4 10 | . . . . . . . . 38 55 Level 5 1 | . . . . . . . . 8 . High Security . | . . . . . . . . . . Max Security . | . . . . . . . . . . Squads Dispatched 19 | . 2 . 6 . . . 6 . 5 Investigation 6 | . . . 4 . . . 1 . 1 Extermination . | . . . . . . . . . . Reinforcement 8 | . 2 . 2 . . . 4 . . Assault 3 | . . . . . . . . . 3 Garrison 2 | . . . . . . . 1 . 1 Intercept . | . . . . . . . . . . Searches Triggered . | . . . . . . . . . . Construction Impeded 1 | . . . . . . . 1 . . Haulers Reinforced . | . . . . . . . . . . Active Scanning Responses . | . . . . . . . . . . Cargo Convoy Interrupts . | . . . . . . . . . . Stealth | -11 -10 -10 -9 -9 -9 -8 -8 -8 -8 --------- Run | Jun Mat Min Mat Min Exi Min Mat Gar Mat Distress Signals 10 | . . . 6 . . . 2 . 2 Communications Jammed . | . . . . . . . . . . Distress Signals . | . . . . . . . . . . Times Spotted 230 | . 19 6 54 22 . 11 53 37 28 Peak Tracking Total 8 | . 6 3 7 8 . 4 5 5 5 Tactical Retreats 6 | . . . 2 . . 1 2 1 . Traps | -11 -10 -10 -9 -9 -9 -8 -8 -8 -8 ------- Run | Jun Mat Min Mat Min Exi Min Mat Gar Mat Traps Triggered 16 | . . . 4 . . . 5 7 . Indirectly . | . . . . . . . . . . Trap Hack Attempts . | . . . . . . . . . . Triggered . | . . . . . . . . . . Disarmed . | . . . . . . . . . . Reprogrammed . | . . . . . . . . . . Reused 1 | . . . . . . . . 1 . Traps Extracted . | . . . . . . . . . . Installed 1 | . . . . . . . . 1 . Triggered 2 | . . . . . . . 1 1 . Most Traps Carried 1 | . . . . . . . . 1 1 Machines | -11 -10 -10 -9 -9 -9 -8 -8 -8 -8 ---------- Run | Jun Mat Min Mat Min Exi Min Mat Gar Mat Machines Disabled 18 | . . 1 4 . . . 3 9 1 Max in Single Turn 1 | . . 1 1 . . . 1 1 1 Garrison Access 1 | . . . . . . . . . 1 Garrison Relay 4 | . . . . . . . . 4 . Machines Repaired . | . . . . . . . . . . Machines Sabotaged . | . . . . . . . . . . Overloaded Fab Kills . | . . . . . . . . . . Hacking | -11 -10 -10 -9 -9 -9 -8 -8 -8 -8 --------- Run | Jun Mat Min Mat Min Exi Min Mat Gar Mat Machines Accessed 45 | . 8 1 14 . 1 . 14 5 2 Terminals 28 | . 6 . 9 . . . 8 5 . Fabricators . | . . . . . . . . . . Repair Stations 6 | . 1 . 2 . . . 2 . 1 Recycling Units 4 | . 1 . 1 . . . 2 . . Scanalyzers 3 | . . . 2 . . . 1 . . Garrison Access 2 | . . . . . . . 1 . 1 Total Hacks 126 | . 18 1 37 . 4 . 50 10 6 Successful 77 | . 11 1 21 . 4 . 34 2 4 Failed 48 | . 7 . 15 . . . 16 8 2 Catastrophic 12 | . 3 . 3 . . . 1 3 2 Database Lockouts 1 | . . . 1 . . . . . . Manual 42 | . 9 . 18 . . . 12 1 2 Terminals 67 | . 15 . 22 . . . 20 10 . Fabricators . | . . . . . . . . . . Repair Stations 21 | . 2 . 8 . . . 7 . 4 Recycling Units 6 | . 1 . 1 . . . 4 . . Scanalyzers 24 | . . . 6 . . . 18 . . Garrison Access 3 | . . . . . . . 1 . 2 Terminal Hacks 23 | . 6 1 5 . 4 . 5 2 . Record 4 | . . . . . 4 . . . . Part Schematic 1 | . . . 1 . . . . . . Robot Analysis 2 | . 2 . . . . . . . . Prototype ID Bank 2 | . 1 . 1 . . . . . . Open Door 1 | . . 1 . . . . . . . Branch Access Points 1 | . . . 1 . . . . . . Terminal Index 2 | . . . 1 . . . 1 . . Alert Level 2 | . 1 . . . . . 1 . . Unreport Threat 2 | . . . 1 . . . 1 . . Locate Traps 1 | . 1 . . . . . . . . Hauler Manifests 1 | . . . . . . . 1 . . Zone Layout 2 | . 1 . . . . . 1 . . Garrison Registry 1 | . . . . . . . . 1 . Security Stations 1 | . . . . . . . . 1 . Fabricator Hacks . | . . . . . . . . . . Repair Station Hacks 17 | . 2 . 5 . . . 6 . 4 Scan Component 9 | . 1 . 3 . . . 3 . 2 Repair 8 | . 1 . 2 . . . 3 . 2 Recycling Unit Hacks . | . . . . . . . . . . Scanalyzer 21 | . . . 4 . . . 17 . . Insert Component 12 | . . . 3 . . . 9 . . Analyze 9 | . . . 1 . . . 8 . . Garrison Access Hacks 1 | . . . . . . . 1 . . Unlock Access 1 | . . . . . . . 1 . . Unauthorized Hacks 15 | . 3 . 7 . . . 5 . . Terminals 12 | . 2 . 6 . . . 4 . . Assimilate 1 | . . . . . . . 1 . . Botnet 11 | . 2 . 6 . . . 3 . . Fabricators . | . . . . . . . . . . Repair Stations . | . . . . . . . . . . Recycling Units 3 | . 1 . 1 . . . 1 . . Mask 3 | . 1 . 1 . . . 1 . . Scanalyzers . | . . . . . . . . . . Garrison Access . | . . . . . . . . . . Data Cores Recovered 1 | . . . 1 . . . . . . Used . | . . . . . . . . . . Hacking Detections 35 | . 6 . 11 . . . 12 5 1 Full Trace Events 4 | . . . . . . . 1 2 1 Feedback Events . | . . . . . . . . . . Feedback Blocked . | . . . . . . . . . . Robot Schematics Acquired . | . . . . . . . . . . Robots Built . | . . . . . . . . . . Authchips . | . . . . . . . . . . Time . | . . . . . . . . . . Total Robot Build Rating . | . . . . . . . . . . Part Schematics Acquired 10 | . . . 2 . . . 8 . . Parts Built . | . . . . . . . . . . Authchips . | . . . . . . . . . . Time . | . . . . . . . . . . Total Part Build Rating . | . . . . . . . . . . Parts Repaired 8 | . 1 . 2 . . . 3 . 2 Time 372 | . 26 . 52 . . . 218 . 76 Parts Recycled . | . . . . . . . . . . Recycled Matter . | . . . . . . . . . . Retrieved Matter . | . . . . . . . . . . Retrieved Components . | . . . . . . . . . . Parts Scanalyzed 9 | . . . 1 . . . 8 . . Part Schematics Acquired 9 | . . . 1 . . . 8 . . Parts Damaged 1 | . . . . . . . 1 . . Bothacking | -11 -10 -10 -9 -9 -9 -8 -8 -8 -8 ------------ Run | Jun Mat Min Mat Min Exi Min Mat Gar Mat Used RIF Installer . | . . . . . . . . . . Robots Hacked . | . . . . . . . . . . Non-combat . | . . . . . . . . . . Combat . | . . . . . . . . . . Robot Hacks Applied . | . . . . . . . . . . Relay Couplers Released 17 | . . . . . . . . 14 3 Machine Destruction 17 | . . . . . . . . 14 3 Fabnet Peak Effective % . | . . . . . . . . . . Robots Rewired 5 | . . . . . . . . 5 . Allies Hacked . | . . . . . . . . . . Hacks Repelled . | . . . . . . . . . . Allies | -11 -10 -10 -9 -9 -9 -8 -8 -8 -8 -------- Run | Jun Mat Min Mat Min Exi Min Mat Gar Mat Total Allies 8 | . . . . 3 . . . 5 . Largest Group 5 | . . . . 3 2 2 . 5 5 Highest-Rated Group 198 | . . . . 40 32 32 . 198 198 Highest-Rated Ally 40 | . . . . 16 16 16 . 40 40 Total Orders . | . . . . . . . . . . Ally Attacks 61 | . . . . 9 . 11 . 5 36 Total Damage 1125 | . . . . 110 . 126 . 184 705 Kills 14 | . . . . 1 . . . 2 11 Allies Corrupted . | . . . . . . . . . . Allies Melted . | . . . . . . . . . . Intel | -11 -10 -10 -9 -9 -9 -8 -8 -8 -8 ------- Run | Jun Mat Min Mat Min Exi Min Mat Gar Mat Robot Analysis Total 2 | . 2 . . . . . . . . Derelict Logs Recovered 3 | . . 2 . 1 . . . . . Drone Launches . | . . . . . . . . . . Drone Recoveries . | . . . . . . . . . . Exploration | -11 -10 -10 -9 -9 -9 -8 -8 -8 -8 ------------- Run | Jun Mat Min Mat Min Exi Min Mat Gar Mat Turns Passed 11980 | 86 1291 901 2364 833 260 747 2696 2262 540 Spaces Moved 6463 | 49 662 524 1112 579 198 480 1377 1292 190 Core 4 | 4 . . . . . . . . . Treads 1486 | 45 662 524 247 . . . 3 2 3 Legs 3222 | . . . 865 579 198 480 1100 . . Wheels 1751 | . . . . . . . 274 1290 187 Hover . | . . . . . . . . . . Flight . | . . . . . . . . . . Fastest Speed 50 | 50 160 160 130 130 130 130 120 120 120 Average Speed 142 | 151 160 160 159 130 130 130 133 133 160 Slowest Speed 270 | 160 160 160 270 130 130 130 193 246 165 Overloaded Moves . | . . . . . . . . . . Propulsion Burnouts . | . . . . . . . . . . Robots Hopped . | . . . . . . . . . . Cave-ins Triggered . | . . . . . . . . . . Exploration Rate (%) 72 | 5 89 96 90 99 55 89 94 89 17 Regions Visited 9 Branch Regions 4 Pre-discovered Areas 2 | . . . . 1 1 . . . . Known Exits Taken 2 | . . . 1 . . . 1 . . Unknown Exits Taken 6 | 1 1 1 . 1 1 1 . . . Scrap Searched 7 | . . 2 . 2 . 3 . . . Spaces Dug 32 | . . . . . . . 25 7 . Terrain Destroyed 274 | . . 17 34 95 . . 65 14 49 Melee 7 | . . . . . . . . 7 . Projectile 65 | . . . . . . . 65 . . AOE 202 | . . 17 34 95 . . . 7 49 Terrain Rammed . | . . . . . . . . . . Walls Destroyed . | . . . . . . . . . . Machines Disabled . | . . . . . . . . . . Actions | -11 -10 -10 -9 -9 -9 -8 -8 -8 -8 --------- Run | Jun Mat Min Mat Min Exi Min Mat Gar Mat Total 8187 | 58 798 561 1480 628 200 560 1942 1594 366 Wait 638 | . 61 12 151 15 . 51 218 27 103 Move 6454 | 48 661 523 1111 578 197 479 1376 1291 190 Hop . | . . . . . . . . . . Pick Up 101 | 4 8 3 21 3 1 3 37 15 6 Fast Attach 62 | 6 4 1 15 2 . . 19 9 6 Attach 40 | . . . 7 3 . 1 17 8 4 Detach 24 | . 3 1 4 . . . 7 4 5 Swap 115 | . 5 4 18 5 1 1 46 27 8 Drop 115 | . 4 3 31 1 1 3 48 17 7 Fire 539 | . 52 14 122 21 . 22 174 99 35 Melee 54 | . . . . . . . . 54 . Ram . | . . . . . . . . . . Kick . | . . . . . . . . . . Crush 2 | . . . . . . . . . 2 Escape Stasis 40 | . . . . . . . . 40 . Rewire 2 | . . . . . . . . 2 . Trap 1 | . . . . . . . . 1 . Miscellaneous . | . . . . . . . . . . Route ------- -11/Junkyard -10/Materials (discovered 4 exits: *Mat x2 / *Min x2) -10/Mines (discovered 2 exits: *Mat x2) -9/Materials (discovered 3 exits: *Mat x2 / *Min) -9/Mines (discovered 3 exits: *Mat x2 / *Exi) -9/Exiles -8/Mines -8/Materials (discovered 4 exits: [*Fac x2] / *Sto / Gar) -8/Garrison (discovered 4 exits: *Mat x4) -8/Materials History --------- Turn | Location | Event 40 | -11/Junkyard | Discovered new exit (range 16) 87 | -11/Junkyard | Entered Materials 118 | -10/Materials | Discovered new exit (range 15) 309 | -10/Materials | Build established: Mutant 369 | -10/Materials | Discovered new exit (range 6) 766 | -10/Materials | Discovered new exit (range 11) 1138 | -10/Materials | Discovered new exit (range 13) 1323 | -10/Materials | Repaired Lgt. Treads 1378 | -10/Materials | Entered Mines 1621 | -10/Mines | Received a Rocket Launcher from a helpful Derelict 1748 | -10/Mines | Found a damaged Exp. Sensor Array with a note attached 1753 | -10/Mines | Found Prototype Device 1828 | -10/Mines | Found the Drone Emporium 1836 | -10/Mines | Found Prototype Device 1836 | -10/Mines | Identified Thief Drone Bay 1837 | -10/Mines | Identified Exp. Sensor Array 1977 | -10/Mines | Learned Materials emergency access door positions 1980 | -10/Mines | Discovered new exit (range 6) 2071 | -10/Mines | Learned Materials stockpile data 2077 | -10/Mines | Discovered new exit (range 9) 2197 | -10/Mines | A weapon hastily lodged in a ceiling crevice suddenly fell to the ground 2279 | -10/Mines | Entered Materials 2279 | -9/Materials | Evolved 2 slots: Propulsion x1, Utility x1 2378 | -9/Materials | Lost 3 parts (1p1n1w) 2752 | -9/Materials | Build established: Scavenger-Mutant 2849 | -9/Materials | Repaired Aluminum Leg 3138 | -9/Materials | Discovered new exit (range 10) 3438 | -9/Materials | Repaired Lgt. Treads 3622 | -9/Materials | Discovered new exit (range 5) 3740 | -9/Materials | Core integrity fell below 50% 3983 | -9/Materials | Central database locked down 4202 | -9/Materials | Identified exit to Mines 4214 | -9/Materials | Build established: Mutant 4643 | -9/Materials | Entered Mines 4658 | -9/Mines | Discovered new exit (range 7) 4757 | -9/Mines | Learned location of Storage (-8) 4787 | -9/Mines | Assembled infested the area 4792 | -9/Mines | Assisted by a Guerilla fighting off Assembled 4839 | -9/Mines | Core integrity fell below 20% 4873 | -9/Mines | Lost 3 parts (1u2w) 4916 | -9/Mines | Assisted by bots powering up and referring to "LRC-V3" 5019 | -9/Mines | Discovered new exit (range 10) 5455 | -9/Mines | Deemed a non-threat by the Exiles lab entrance 5455 | -9/Mines | Discovered new exit (range 5) 5476 | -9/Mines | Entered Exiles 5476 | -9/Exiles | Accompanied by 2 allies 5539 | -9/Exiles | Met 8R-AWN 5557 | -9/Exiles | Met EX-HEX 5619 | -9/Exiles | Met EX-DEC 5645 | -9/Exiles | Learned location of Zion (-6) 5725 | -9/Exiles | Discovered new exit (range 10) 5736 | -9/Exiles | Entered Mines 5736 | -8/Mines | Accompanied by 2 allies 6467 | -8/Mines | Discovered new exit (range 12) 6483 | -8/Mines | Entered Materials 6483 | -8/Materials | Evolved 2 slots: Propulsion x1, Utility x1 6484 | -8/Materials | Identified exit to Storage 7565 | -8/Materials | Repaired Broken Exp. Sensor Array 8046 | -8/Materials | Discovered new exit (range 13) 8212 | -8/Materials | Lost 4 parts (2n2u) 8354 | -8/Materials | Repaired Carbon-fiber Leg 8542 | -8/Materials | Build established: Scavenger-Mutant 8554 | -8/Materials | Lost 5 parts (1p1n2u1w) 8593 | -8/Materials | Garrison activated, responded to threat 8686 | -8/Materials | Identified exit to Garrison 8802 | -8/Materials | Repaired Plasma Cannon 8984 | -8/Materials | Discovered new exit (range 16) 9179 | -8/Materials | Entered Garrison 9202 | -8/Garrison | Triggered checkpoint 9238 | -8/Garrison | Garrison Relay disabled 9304 | -8/Garrison | Triggered checkpoint 9388 | -8/Garrison | Core integrity fell below 50% 9510 | -8/Garrison | Triggered checkpoint 9611 | -8/Garrison | Discovered new exit (range 10) 9651 | -8/Garrison | Learned Materials security intel 9662 | -8/Garrison | Triggered checkpoint 9897 | -8/Garrison | Garrison Relay disabled 9994 | -8/Garrison | Triggered checkpoint 10005 | -8/Garrison | Triggered checkpoint 10071 | -8/Garrison | Lost 4 parts (2n2w) 10318 | -8/Garrison | Discovered new exit (range 10) 10467 | -8/Garrison | Garrison Relay disabled 10543 | -8/Garrison | Core integrity fell below 20% 10620 | -8/Garrison | Triggered checkpoint 10668 | -8/Garrison | Garrison Relay disabled 10753 | -8/Garrison | Discovered new exit (range 12) 10941 | -8/Garrison | Discovered new exit (range 5) 11253 | -8/Garrison | Discovered new exit (range 93) 11253 | -8/Garrison | Discovered new exit (range 34) 11253 | -8/Garrison | Discovered new exit (range 70) 11253 | -8/Garrison | Discovered new exit (range 34) 11428 | -8/Garrison | Identified exit to Materials 11441 | -8/Garrison | Entered Materials 11441 | -8/Materials | Accompanied by 5 allies 11617 | -8/Materials | Garrison activated, responded to threat 11780 | -8/Materials | Repaired Rnf. Deuterium Engine 11816 | -8/Materials | Repaired Arm. Wheel 11841 | -8/Materials | First assault squad dispatched 11975 | -8/Materials | Destroyed 12 combat bots 11981 | -8/Materials | Destroyed by G-50 Soldier with Heavy Laser Last Messages --------------- 11955_ K-01 Serf collects debris. 11960_ U-05 Engineer builds a Wall. 11963_ K-01 Serf collects debris. 11964_ U-05 Engineer lays Concrete. 11964_ Acquired Hvy. Particle Cannon. 11965_ U-05 Engineer builds a Wall. 11966_ The unstable cave ceiling collapses. 11967_ K-01 Serf collects debris. 11969_ W-25 Informer sends out distress signal. 11969_ U-05 Engineer builds a Wall. 11970_ Acquired Particle Cannon. 11971_ K-01 Serf collects debris. 11973_ Critical hit (Burn: +37). 11973_ U-05 Engineer lays Concrete. 11974_ K-01 Serf collects debris. 11974_ U-05 Engineer builds a Wall. 11975_ The unstable cave ceiling collapses. 11979_ U-05 Engineer builds a Wall. 11980_ Acquired 14 matter. 11981_ Critical hit (Burn: +37). Map ----- +----------------------------------------------------+ | | | | | | | | | ??????????????########???????????????????????????? | | ??????????????# #???????????????????????????? | | ????????????### """ #???????????????????????????? | | #######?????? + "R * #???????????????????????????? | | #???????# """ ########????????????????????? | | ! #???????# # #????????????????????? | | #???????# # ""#????????????????????? | | """ #???????####/### Y"#????????????????????? | | """ #??????????# #?# ""#????????????????????? | | """ #??????????# #?# #????????????????????? | | """ #???######## #?# %% #????????????????????? | | #???# [%!# ######/###????????????????????? | | #???# !!!%#% % #?????????????????????? | | ##+######## "!"%+% % #?????????????????????? | | +! "!"%# % #?????????????????????? | | #######* !*# % % #?????????????????????? | | # #???# % [# % % ##????????????????????? | | # ###???########= ########?????????????? | | # #????????###?# +????????????? | | # #????????????######r## ########????????????? | | # #??????????###### # u #????????????????? | | # #??????????# #%#@ #????????????????? | | # #??????????# *# # #????????????????? | | # #??????????# [*! * ####????????????????? | | # #??????????# [*! # ####????????????????? | | # #??????????# *! ==% # #??????????????? | | # =#??????????# * #??????????????? | | # %#??????????##### !%% * #??????????????? | | # % ????????????? g*% #??????????????? | | + = ???????????? g #??????????????? | | # %[??????????? #??????????????? | | ? * ??????????#########k #??????????????? | | ? ??????????????????# # #??????????????? | | ? ??????????????????# # #??????????????? | | ???????????????????????? ##########??????????????? | | ????????????????????????+#???????????????????????? | | ?????????????????????????????????????????????????? | | ?????????????????????????????????????????????????? | | ?????????????????????????????????????????????????? | | ?????????????????????????????????????????????????? | | ?????????????????????????????????????????????????? | | ?????????????????????????????????????????????????? | | ?????????????????????????????????????????????????? | | ?????????????????????????????????????????????????? | | ?????????????????????????????????????????????????? | | ?????????????????????????????????????????????????? | +----------------------------------------------------+ Best States ------------- Heat Dissipation 67 Energy Generation 16 Energy Capacity 290 Matter Stores 500 Matter Capacity 500 Sight Range 18 Robot Scan Range 20 Terrain Scan Range 14 Terrain Scan Density 10 Armor Coverage 300 Resistance: KI 20 Propulsion Shielding 66 Evasion (%) 55 Targeting Accuracy 8 Recoil Reduction 3 Offensive Hacking 10 Defensive Hacking 10 Item Schematics ----------------- Hcp. Storage Unit | -9/Materials | Hacked Exp. Sensor Array | -9/Materials | Scanalyzed Lrn. Tractor Beam | -8/Materials | Scanalyzed Adv. Heat Sink | -8/Materials | Scanalyzed Adv. EMP Blaster | -8/Materials | Scanalyzed Adv. Targeting Computer | -8/Materials | Scanalyzed Imp. Signal Interpreter | -8/Materials | Scanalyzed Mak. Sword | -8/Materials | Scanalyzed Arm. Wheel | -8/Materials | Scanalyzed Nuclear Core | -8/Materials | Scanalyzed Robot Schematics ------------------ None Fabricated ------------ Nothing Alien Tech Used ----------------- None Achievements -------------- None Challenges ------------ None Game ------ Seed DecoderAntimissileShifter Manual? 0 Play Time 02:13:08 Cumulative 147.9 hours Start 2023.03.28 @ 01:15:38 End 2023.03.28 @ 13:48:10 Sessions 3 Manual Loads 0 Difficulty Rogue Special Mode None Game No. 82 Rogue 82 Adventurer 0 Explorer 0 Win Type - Total 2 Types 2/0/0/0/0/0/0/0/0 Lore% 50 Gallery% 60 Achievement% 49 Wizard Run 0 Options --------- ASCII 0 Keyboard 1 Movement Vi Keybinds 0 Fullscreen 1 Font 12/Smallcaps Map View 83x54 Tactical HUD 1 Map Filters NONE Filters NONE Steam 1 RUN: e8277bde-0228-442e-bc25-dffc8521ab28